bitfinex/quotes_SOLUSD_20260202
["timestamp","ask_amount","ask_price","bid_price","bid_amount"]
[1770021534252,4.5,102.04,102.0,9.20963936]
[1770021534847,4.5,102.04,102.01,9.20963936]
[1770021536766,4.5,102.06,102.03,9.20963936]
[1770021537270,4.5,102.06,102.02,9.20963936]
[1770021539055,4.5,102.06,102.03,9.20963936]
[1770021539671,4.5,102.06,102.02,9.20963936]
[1770021540265,67.2,102.08,102.04,9.20963936]
[1770021540470,67.2,102.08,102.05,9.20963936]
[1770021540974,6.31705627,102.09,102.07,9.20963936]
[1770021541194,4.5,102.14,102.08,9.20963936]
[1770021541474,4.5,102.12,102.07,13.48491021]
[1770021541972,4.5,102.12,102.09,9.20963936]
[1770021542147,4.5,102.16,102.11,9.20963936]
[1770021542352,4.5,102.16,102.13,9.20963936]
[1770021542563,4.5,102.16,102.14,9.20963936]
[1770021542855,6.40063359,102.17,102.15,9.20963936]
[1770021543448,4.5,102.2,102.16,9.20963936]
[1770021543648,4.5,102.2,102.18,9.20963936]
[1770021543866,9.20963936,102.24,102.18,9.20963936]
[1770021544054,4.5,102.23,102.19,9.20963936]
[1770021544375,9.20963936,102.24,102.16,0.28432314]
[1770021544376,4.5,102.24,102.22,9.20963936]
[1770021544590,6.34067451,102.25,102.23,9.20963936]
[1770021544752,6.34067451,102.25,102.24,9.20963936]
[1770021544952,4.5,102.24,102.15,27.22]
[1770021545163,4.5,102.24,102.2,9.20963936]
[1770021546769,6.34067451,102.25,102.23,9.20963936]
[1770021547354,6.34067451,102.25,102.24,9.20963936]
[1770021547564,6.34067451,102.25,102.23,9.20963936]
[1770021548171,6.34067451,102.25,102.24,9.20963936]
[1770021548369,6.34067451,102.25,102.23,9.20963936]
[1770021548572,4.6,102.26,102.24,9.20963936]
[1770021549166,4.6,102.26,102.23,9.20963936]
[1770021549560,4.6,102.26,102.24,9.20963936]
[1770021549760,0.1,102.26,102.25,9.20963936]
[1770021550875,4.6,102.28,102.25,9.20963936]
[1770021550876,0.1,102.28,102.25,9.20963936]
[1770021551061,0.1,102.28,102.26,9.20963936]
[1770021551654,0.1,102.28,102.27,9.20963936]
[1770021552053,0.1,102.28,102.26,9.20963936]
[1770021552457,9.62191796,102.32,102.27,9.20963936]
[1770021552458,4.5,102.31,102.27,9.20963936]
[1770021552671,4.5,102.31,102.28,9.20963936]
[1770021552858,0.4122786,102.32,102.29,9.20963936]
[1770021553059,0.4122786,102.32,102.27,9.77796251]
[1770021553060,0.4122786,102.32,102.3,9.20963936]
[1770021553361,6.36310133,102.34,102.31,9.20963936]
[1770021553662,4.5,102.36,102.31,9.20963936]
[1770021553870,4.5,102.35,102.31,9.20963936]
[1770021554073,4.5,102.35,102.3,9.20963936]
[1770021554672,18.59495589,102.41,102.28,9.20963936]
[1770021554673,4.5,102.33,102.28,9.20963936]
[1770021555176,4.5,102.38,102.33,4.27527085]
[1770021555475,5.11004568,102.41,102.33,4.27527085]
[1770021555476,4.5,102.37,102.33,9.20963936]
[1770021556379,4.5,102.37,102.33,9.1838277]
[1770021556574,4.5,102.37,102.32,9.1838277]
[1770021556778,4.5,102.36,102.32,9.1838277]
[1770021557072,4.5,102.36,102.34,9.1838277]
[1770021557277,4.5,102.39,102.35,9.1838277]
[1770021557873,4.5,102.39,102.34,9.1838277]
[1770021558182,4.5,102.39,102.37,9.1838277]
[1770021558381,4.5,102.39,102.36,9.1838277]
[1770021558757,4.5,102.39,102.32,14.33274545]
[1770021559068,4.5,102.39,102.36,9.1838277]
[1770021559685,9.1838277,102.41,102.38,9.1838277]
[1770021559686,4.5,102.41,102.38,9.1838277]
[1770021560196,4.5,102.41,102.37,9.1838277]
[1770021560361,4.5,102.41,102.36,9.1838277]
[1770021560565,4.5,102.4,102.36,9.1838277]
[1770021561081,4.5,102.4,102.37,9.1838277]
[1770021561499,4.5,102.4,102.36,9.1838277]
[1770021561995,4.5,102.4,102.37,9.1838277]
[1770021562470,4.5,102.4,102.36,9.1838277]
[1770021563064,4.5,102.4,102.37,9.1838277]
[1770021563263,4.5,102.4,102.38,9.1838277]
[1770021563461,10.83039814,102.42,102.39,9.1838277]
[1770021563670,4.30751933,102.4,102.35,9.1838277]
[1770021563883,4.30751933,102.4,102.36,9.1838277]
[1770021564581,4.30751933,102.39,102.35,9.1838277]
[1770021564767,4.30751933,102.36,102.32,9.1838277]
[1770021565164,4.30751933,102.38,102.33,9.1838277]
[1770021565366,4.30751933,102.38,102.34,9.1838277]
[1770021566368,4.30751933,102.37,102.32,9.1838277]
[1770021566584,4.30751933,102.35,102.29,4.17222434]
[1770021566786,4.30751933,102.35,102.31,9.1838277]
[1770021568885,4.30751933,102.34,102.3,9.1838277]
[1770021569291,4.30751933,102.34,102.29,13.45909855]
[1770021569588,4.30751933,102.32,102.28,74.44261925]
[1770021569787,4.30751933,102.32,102.28,65.25879155]
[1770021570019,4.30751933,102.31,102.27,9.1838277]
[1770021571471,13.49134703,102.33,102.28,9.1838277]
[1770021571672,4.30751933,102.32,102.28,9.1838277]
[1770021572597,4.30751933,102.32,102.29,9.1838277]
[1770021572799,4.59184247,102.36,102.29,9.1838277]
[1770021573097,4.30751933,102.32,102.27,9.1838277]
[1770021574873,4.30751933,102.31,102.27,9.1838277]
[1770021575799,4.30751933,102.31,102.26,13.35605204]
[1770021576099,4.30751933,102.31,102.27,9.1838277]
[1770021577299,4.30751933,102.3,102.25,13.45909855]
[1770021577477,4.30751933,102.29,102.24,13.35605204]
[1770021577878,4.30751933,102.29,102.24,4.17222434]
[1770021578079,4.30751933,102.29,102.24,13.35605204]
[1770021578781,4.40912316,102.27,102.23,9.1838277]
[1770021578986,4.40912316,102.26,102.22,27.16]
[1770021579176,4.40912316,102.26,102.21,9.1838277]
[1770021579377,4.40912316,102.26,102.21,13.25987165]
[1770021580196,4.40912316,102.26,102.21,4.07604395]
[1770021580399,4.40912316,102.26,102.21,13.25987165]
[1770021580900,4.40912316,102.24,102.2,66.81819155]
[1770021581196,13.59295086,102.23,102.18,9.1838277]
[1770021581603,4.40912316,102.22,102.18,9.1838277]
[1770021581802,4.40912316,102.22,102.17,13.25987165]
[1770021582100,4.40912316,102.23,102.18,13.25987165]
[1770021582476,62.7,102.24,102.19,13.25987165]
[1770021582681,4.40912316,102.24,102.2,13.25987165]
[1770021582887,4.40912316,102.24,102.2,9.1838277]
[1770021583100,4.40912316,102.24,102.19,13.25987165]
[1770021583895,4.40912316,102.24,102.2,9.1838277]
[1770021585808,30.0,102.25,102.22,4.07604395]
[1770021585998,25.5,102.23,102.21,9.1838277]
[1770021586196,25.5,102.23,102.2,36.3638277]
[1770021586400,30.0,102.23,102.2,36.3638277]
[1770021586589,25.5,102.23,102.2,36.3638277]
[1770021586786,4.5,102.24,102.2,36.3638277]
[1770021588803,4.5,102.26,102.22,9.1838277]
[1770021589210,4.5,102.25,102.21,9.1838277]
[1770021589513,4.5,102.24,102.19,9.1838277]
[1770021589706,4.5,102.23,102.19,9.1838277]
[1770021589910,4.5,102.22,102.18,9.1838277]
[1770021590105,4.5,102.22,102.17,40.63909855]
[1770021590299,4.5,102.22,102.17,36.3638277]
[1770021590804,4.5,102.21,102.17,36.3638277]
[1770021591004,4.5,102.23,102.18,9.1838277]
[1770021592012,4.5,102.23,102.19,9.1838277]
[1770021592313,4.5,102.23,102.2,9.1838277]
[1770021592820,4.5,102.23,102.19,9.1838277]
[1770021593024,4.5,102.23,102.18,9.1838277]
[1770021594612,4.5,102.23,102.19,9.1838277]
[1770021596525,4.5,102.25,102.2,9.1838277]
[1770021597411,9.1838277,102.25,102.2,9.1838277]
[1770021597617,4.5,102.24,102.2,9.1838277]
[1770021598108,4.5,102.24,102.19,9.1838277]
[1770021598515,4.5,102.24,102.2,9.1838277]
[1770021599100,4.5,102.25,102.21,9.1838277]
[1770021599421,4.5,102.24,102.19,0.28432314]
[1770021599604,4.5,102.24,102.2,9.1838277]
[1770021599806,4.5,102.24,102.19,13.74342169]
[1770021600215,4.5,102.23,102.19,13.45909855]
[1770021600412,4.5,102.24,102.2,9.1838277]
[1770021600816,4.5,102.24,102.19,14.06031119]
[1770021601120,4.5,102.24,102.19,13.45909855]
[1770021601323,13.6838277,102.2,102.09,48.20499379]
[1770021601523,4.5,102.17,102.11,9.7933601]
[1770021601727,4.5,102.16,102.11,9.1838277]
[1770021601905,4.5,102.16,102.12,9.1838277]
[1770021602313,4.5,102.17,102.13,9.1838277]
[1770021602514,13.6838277,102.16,102.11,13.45909855]
[1770021602809,4.5,102.16,102.11,9.1838277]
[1770021603011,13.6838277,102.13,102.09,0.2]
[1770021603209,4.5,102.11,102.09,0.2]
[1770021603416,4.4,102.1,102.06,9.1838277]
[1770021603615,4.4,102.1,102.07,9.1838277]
[1770021603932,4.4,102.12,102.08,9.1838277]
[1770021604231,4.4,102.12,102.07,9.1838277]
[1770021604232,30.0,102.09,102.07,9.1838277]
[1770021604726,4.4,102.08,102.01,0.2]
[1770021604914,4.4,102.07,102.03,9.1838277]
[1770021605114,30.0,102.06,102.03,9.1838277]
[1770021605840,30.0,102.06,102.04,9.1838277]
[1770021606507,30.0,102.06,102.02,0.28432314]
[1770021606714,4.4,102.05,102.01,9.1838277]
[1770021606908,30.0,102.04,102.01,9.1838277]
[1770021607404,30.0,102.04,102.0,66.81819155]
[1770021607405,30.0,102.04,102.02,9.1838277]
[1770021608603,30.0,102.04,102.03,9.1838277]
[1770021608806,30.0,102.04,102.02,9.1838277]
[1770021609428,34.4,102.04,102.02,9.1838277]
[1770021610233,30.0,102.04,102.02,9.1838277]
[1770021610715,30.0,102.04,102.03,9.1838277]
[1770021610716,27.56075701,102.04,102.03,9.1838277]
[1770021611119,4.5,102.03,102.0,9.1838277]
[1770021611328,4.5,102.03,101.99,9.1838277]
[1770021611933,27.56075701,102.04,102.01,9.1838277]
[1770021612311,27.56075701,102.04,102.02,9.1838277]
[1770021612512,30.0,102.03,102.02,9.1838277]
[1770021613036,4.5,102.07,102.02,9.1838277]
[1770021613234,4.5,102.07,102.03,9.1838277]
[1770021613416,4.5,102.06,102.01,9.1838277]
[1770021613728,4.5,102.05,102.01,9.1838277]
[1770021613928,4.5,102.05,102.0,0.28432314]
[1770021613929,4.5,102.04,102.0,36.4038277]
[1770021614716,4.5,102.04,102.01,9.1838277]
[1770021615018,4.5,102.06,102.02,9.1838277]
[1770021616419,4.5,102.06,102.01,9.1838277]
[1770021617830,13.6838277,102.06,102.01,9.1838277]
[1770021618028,4.5,102.05,102.01,9.1838277]
[1770021618442,4.5,102.04,102.0,36.46357956]
[1770021618740,4.5,102.02,101.98,9.24357956]
[1770021618935,4.5,102.01,101.96,9.24357956]
[1770021619137,4.5,102.01,101.95,27.22]
[1770021619324,4.5,102.03,101.98,9.24357956]
[1770021619528,4.5,102.02,101.98,9.24357956]
[1770021619726,4.5,102.02,101.99,9.24357956]
[1770021621143,4.5,102.02,101.98,9.24357956]
[1770021621443,4.5,102.02,101.99,9.24357956]
[1770021622039,4.5,102.04,102.0,9.24357956]
[1770021622234,4.5,102.04,102.01,9.24357956]
[1770021622433,4.5,102.04,102.0,9.24357956]
[1770021622622,4.5,102.04,102.01,9.24357956]
[1770021624440,9.24357956,102.06,101.99,10.08912688]
[1770021624441,4.5,102.06,102.02,9.24357956]
[1770021624649,4.5,102.06,102.03,9.24357956]
[1770021626328,4.5,102.08,102.03,9.80103687]
[1770021626646,4.5,102.08,102.04,9.24357956]
[1770021627152,4.5,102.06,102.02,9.24357956]
[1770021627328,4.5,102.06,102.03,9.24357956]
[1770021627529,4.5,102.06,102.04,9.24357956]
[1770021627730,4.5,102.06,102.03,9.24357956]
[1770021628551,4.5,102.06,102.04,9.24357956]
[1770021628861,4.5,102.06,102.02,9.24357956]
[1770021629151,4.5,102.05,102.0,9.24357956]
[1770021629455,4.5,102.05,102.01,9.24357956]
[1770021630142,4.5,102.04,102.0,9.24357956]
[1770021630539,4.5,102.04,102.01,9.24357956]
[1770021631130,4.5,102.04,102.0,9.24357956]
[1770021631933,4.5,102.04,102.01,9.24357956]
[1770021632953,4.5,102.04,102.0,9.24357956]
[1770021634454,9.24357956,102.02,101.97,9.24357956]
[1770021634660,4.5,102.0,101.96,9.24357956]
[1770021638365,4.5,102.0,101.97,9.24357956]
[1770021638559,4.5,102.0,101.98,9.24357956]
[1770021638865,4.5,102.01,101.98,9.24357956]
[1770021639058,4.5,102.01,101.97,9.24357956]
[1770021640371,4.5,102.0,101.96,9.24357956]
[1770021640544,4.5,101.99,101.95,9.24357956]
[1770021641761,4.5,101.99,101.93,9.36734766]
[1770021641762,4.5,101.98,101.93,9.36734766]
[1770021642170,4.5,101.98,101.94,9.24357956]
[1770021642348,4.5,101.98,101.95,9.24357956]
[1770021643050,4.5,101.98,101.96,9.24357956]
[1770021643344,4.5,102.0,101.96,9.24357956]
[1770021644662,4.5,102.0,101.97,9.24357956]
[1770021646149,4.5,102.0,101.96,9.24357956]
[1770021646650,4.5,102.0,101.97,9.24357956]
[1770021647769,4.5,102.0,101.96,9.24357956]
[1770021647960,4.5,102.0,101.97,9.24357956]
[1770021650270,4.5,102.0,101.96,9.24357956]
[1770021651150,4.5,102.0,101.95,9.5279027]
[1770021651676,4.5,102.0,101.96,9.24357956]
[1770021652454,4.5,102.0,101.97,9.24357956]
[1770021652681,30.0,101.98,101.97,9.24357956]
[1770021653259,30.0,101.98,101.96,9.24357956]
[1770021654370,30.0,101.98,101.97,9.24357956]
[1770021655378,30.0,101.98,101.96,9.24357956]
[1770021655673,30.0,101.98,101.95,19.33641411]
[1770021655977,30.0,101.98,101.96,9.24357956]
[1770021657576,30.0,101.98,101.95,9.5279027]
[1770021657773,4.5,101.97,101.93,0.1237681]
[1770021657952,4.5,101.97,101.93,9.36734766]
[1770021658762,30.0,101.96,101.94,9.24357956]
[1770021658967,29.61309092,101.96,101.95,9.24357956]
[1770021661273,29.61309092,101.96,101.94,36.48357956]
[1770021661473,29.61309092,101.96,101.94,27.24]
[1770021662382,4.5,101.95,101.94,27.24]
[1770021662563,4.5,101.95,101.93,0.1237681]
[1770021663077,33.7884723,101.96,101.93,0.1237681]
[1770021663258,29.61309092,101.96,101.94,4.09387633]
[1770021663465,30.0,101.95,101.94,13.33745589]
[1770021663661,18.65817106,101.95,101.94,13.33745589]
[1770021663861,4.27527085,102.02,101.95,4.37819947]
[1770021663862,4.17538138,102.0,101.95,4.37819947]
[1770021664068,4.17538138,102.0,101.97,9.24357956]
[1770021664378,4.17538138,102.0,101.98,9.24357956]
[1770021664588,4.17538138,102.02,101.99,9.24357956]
[1770021665262,4.17538138,102.03,102.0,9.24357956]
[1770021666071,4.17538138,102.03,101.99,13.33745589]
[1770021666270,4.17538138,102.03,102.0,9.24357956]
[1770021667562,13.41896094,102.05,102.0,9.24357956]
[1770021667765,4.09996533,102.09,102.04,13.70536371]
[1770021667969,4.09996533,102.09,102.05,9.24357956]
[1770021668164,4.09996533,102.08,102.04,9.24357956]
[1770021668365,4.09996533,102.08,102.03,4.46178415]
[1770021668366,4.09996533,102.08,102.03,13.70536371]
[1770021668567,4.09996533,102.07,102.03,9.24357956]
[1770021669785,4.09996533,102.07,102.04,9.24357956]
[1770021669978,4.09996533,102.07,102.03,4.46178415]
[1770021670180,4.09996533,102.07,102.04,9.24357956]
[1770021671479,4.09996533,102.09,102.05,9.24357956]
[1770021671887,4.09996533,102.09,102.06,9.24357956]
[1770021672390,4.09996533,102.11,102.07,9.24357956]
[1770021672806,4.09996533,102.11,102.08,9.24357956]
[1770021676198,4.09996533,102.11,102.07,9.24357956]
[1770021676385,4.09996533,102.1,102.06,9.24357956]
[1770021677799,4.09996533,102.1,102.05,9.24357956]
[1770021678200,4.09996533,102.1,102.06,9.24357956]
[1770021678497,4.09996533,102.1,102.05,13.70536371]
[1770021679491,4.09996533,102.09,102.04,0.28432314]
[1770021679806,4.09996533,102.09,102.03,4.46178415]
[1770021679807,4.09996533,102.07,102.03,13.70536371]
[1770021680103,4.09996533,102.09,102.06,9.24357956]
[1770021680492,4.09996533,102.1,102.06,13.69423697]
[1770021681704,9.23245282,102.12,102.08,9.23245282]
[1770021681705,4.09996533,102.12,102.08,9.23245282]
[1770021683906,4.09996533,102.11,102.06,4.46178415]
[1770021684208,4.09996533,102.1,102.06,9.23245282]
[1770021686711,4.09996533,102.09,102.04,9.23245282]
[1770021687005,4.09996533,102.08,102.04,9.23245282]
[1770021687208,13.33241815,102.08,102.03,9.23245282]
[1770021687506,4.09996533,102.05,102.01,9.23245282]
[1770021688694,4.09996533,102.05,102.0,13.69423697]
[1770021689611,4.09996533,102.05,102.01,9.23245282]
[1770021690505,4.09996533,102.07,102.02,13.69423697]
[1770021690711,4.09996533,102.08,102.04,13.69423697]
[1770021690911,4.09996533,102.08,102.05,9.23245282]
[1770021692083,4.09996533,102.08,102.04,13.69423697]
[1770021697416,4.09996533,102.08,102.04,4.46178415]
[1770021697718,4.09996533,102.08,102.04,13.69423697]
[1770021697935,4.05639094,102.12,102.07,13.59116466]
[1770021698212,4.05639094,102.11,102.05,4.35871184]
[1770021698414,4.05639094,102.1,102.06,9.23245282]
[1770021698793,4.05639094,102.1,102.06,13.59116466]
[1770021699323,66.75639094,102.13,102.09,4.35871184]
[1770021699498,4.05639094,102.13,102.09,13.59116466]
[1770021700126,4.05639094,102.12,102.08,9.23245282]
[1770021700506,4.05639094,102.1,102.05,13.59116466]
[1770021701710,4.05639094,102.09,102.05,13.59116466]
[1770021702726,4.05639094,102.09,102.05,4.35871184]
[1770021703111,4.05639094,102.09,102.05,13.59116466]
[1770021705626,4.05639094,102.09,102.05,4.35871184]
[1770021706020,4.05639094,102.09,102.05,13.59116466]
[1770021707113,4.05639094,102.07,102.02,13.59116466]
[1770021707328,4.05639094,102.06,102.02,13.59116466]
[1770021708835,4.13644731,102.07,102.03,4.14420502]
[1770021709132,4.13644731,102.07,102.02,9.23245282]
[1770021709133,4.13644731,102.06,102.02,13.37665784]
[1770021709325,4.13644731,102.06,102.02,4.14420502]
[1770021709523,4.13644731,102.05,102.0,13.37665784]
[1770021709720,4.13644731,102.03,101.99,13.37665784]
[1770021710333,4.13644731,102.03,101.98,9.23245282]
[1770021710535,4.13644731,102.03,101.98,13.37665784]
[1770021710836,4.13644731,102.02,101.99,9.23245282]
[1770021711232,4.13644731,102.02,101.98,13.37665784]
[1770021714138,4.13644731,102.02,101.97,4.42852816]
[1770021714335,4.13644731,102.01,101.97,4.14420502]
[1770021714520,4.13644731,102.0,101.96,9.23245282]
[1770021714724,4.13644731,101.99,101.94,13.37665784]
[1770021714924,4.13644731,101.98,101.94,9.23245282]
[1770021717328,4.13644731,101.99,101.96,9.23245282]
[1770021717923,4.13644731,102.01,101.98,9.23245282]
[1770021718438,4.13644731,102.03,101.98,13.37665784]
[1770021718836,4.13644731,102.03,101.99,9.23245282]
[1770021720723,4.13644731,102.03,101.95,24.5197485]
[1770021720724,4.13644731,102.01,101.96,9.23245282]
[1770021720926,4.13644731,102.0,101.96,13.37665784]
[1770021721245,4.13644731,102.0,101.95,13.37665784]
[1770021721545,4.13644731,102.0,101.96,9.23245282]
[1770021724143,4.13644731,102.0,101.96,13.37665784]
[1770021724551,62.7,102.01,101.97,13.37665784]
[1770021724743,62.7,102.01,101.98,9.23245282]
[1770021725055,66.83644731,102.01,101.97,13.37665784]
[1770021725347,66.83644731,102.01,101.98,9.23245282]
[1770021726341,62.7,102.01,101.98,13.37665784]
[1770021727941,30.0,101.99,101.98,13.37665784]
[1770021730447,30.0,101.99,101.95,24.80563316]
[1770021730448,30.0,101.99,101.97,13.72830677]
[1770021733263,25.5,101.99,101.98,14.01262991]
[1770021733432,4.30614441,102.02,101.98,14.01262991]
[1770021733633,4.30614441,102.02,102.0,9.23245282]
[1770021735341,4.30614441,102.02,101.99,9.23245282]
[1770021736158,4.5,102.03,102.0,9.23245282]
[1770021736450,4.5,102.03,101.99,9.23245282]
[1770021737544,4.5,102.03,102.0,9.23245282]
[1770021738645,4.5,102.03,101.99,9.23245282]
[1770021739461,4.5,102.03,102.0,9.23245282]
[1770021740334,4.5,102.03,102.0,9.24484862]
[1770021741764,4.5,102.03,101.99,9.52917176]
[1770021742061,4.5,102.03,101.99,9.24484862]
[1770021743144,4.5,102.03,102.0,9.24484862]
[1770021743852,4.5,102.03,101.99,9.24484862]
[1770021744360,13.74484862,102.03,101.97,9.24484862]
[1770021744665,4.5,102.02,101.97,9.24484862]
[1770021745360,4.5,102.02,101.93,0.1237681]
[1770021745361,4.5,102.0,101.93,0.1237681]
[1770021745565,4.5,101.99,101.95,9.24484862]
[1770021745740,4.5,102.0,101.96,9.24484862]
[1770021746451,30.0,101.98,101.96,9.24484862]
[1770021747459,4.5,101.99,101.96,9.24484862]
[1770021750462,4.5,101.99,101.96,3.70075295]
[1770021751677,4.5,102.0,101.97,3.70075295]
[1770021753765,4.5,102.0,101.95,10.09257219]
[1770021754067,4.5,102.0,101.96,3.70075295]
[1770021754266,4.5,102.0,101.95,3.98507609]
[1770021754572,4.5,101.99,101.95,3.70075295]
[1770021757172,4.5,101.99,101.97,3.70075295]
[1770021758155,4.5,101.99,101.96,3.70075295]
[1770021759274,4.5,101.99,101.97,3.70075295]
[1770021760190,62.7,102.01,101.98,3.70075295]
[1770021760191,67.2,102.01,101.98,3.70075295]
[1770021760351,4.5,102.01,101.97,10.09098993]
[1770021760554,4.5,102.03,101.99,3.70075295]
[1770021760757,62.7,102.04,101.99,0.28432314]
[1770021760758,10.14,102.0,101.99,0.28432314]
[1770021760956,4.5,102.04,102.0,0.28432314]
[1770021761273,4.5,102.06,102.03,3.70075295]
[1770021762257,4.5,102.07,102.04,3.70075295]
[1770021762578,4.5,102.07,102.04,9.23653916]
[1770021763466,4.5,102.07,102.05,9.23653916]
[1770021764068,4.5,102.09,102.06,9.23653916]
[1770021764954,4.5,102.09,102.04,9.80000847]
[1770021765159,4.5,102.09,102.07,9.23653916]
[1770021765480,4.5,102.09,102.06,9.23653916]
[1770021766477,4.5,102.09,102.05,0.28432314]
[1770021766772,4.5,102.09,102.06,9.23653916]
[1770021766975,4.6,102.1,102.07,9.23653916]
[1770021767478,4.6,102.1,102.06,9.23653916]
[1770021768878,4.6,102.1,102.07,9.23653916]
[1770021770279,0.1,102.1,102.08,9.23653916]
[1770021770667,4.6,102.1,102.08,9.23653916]
[1770021771773,4.6,102.1,102.07,9.23653916]
[1770021774896,4.6,102.1,102.06,9.23653916]
[1770021775077,4.5,102.09,102.05,9.23653916]
[1770021775387,4.5,102.09,102.06,9.23653916]
[1770021775572,4.5,102.09,102.04,0.28432314]
[1770021775774,4.5,102.09,102.06,9.23653916]
[1770021776888,4.5,102.09,102.07,9.23653916]
[1770021777075,4.5,102.09,102.06,9.23653916]
[1770021777581,4.5,102.09,102.07,9.23653916]
[1770021778888,4.6,102.1,102.08,9.23653916]
[1770021780497,4.6,102.1,102.07,9.23653916]
[1770021781572,4.6,102.1,102.05,9.23653916]
[1770021782495,4.6,102.1,102.06,3.69370096]
[1770021783174,4.6,102.1,102.05,3.69370096]
[1770021783369,4.5,102.09,102.04,3.69370096]
[1770021783591,4.5,102.07,102.02,3.69370096]
[1770021784484,4.5,102.05,102.02,3.69370096]
[1770021787782,27.52,102.06,102.04,3.69370096]
[1770021789208,4.5,102.08,102.05,3.69370096]
[1770021790617,4.5,102.08,102.03,3.9780241]
[1770021791694,4.5,102.07,102.03,3.69370096]
[1770021792398,4.5,102.05,102.01,3.69370096]
[1770021794315,4.5,102.04,102.0,3.69370096]
[1770021798912,4.5,102.02,101.95,13.501923]
[1770021799209,4.5,102.01,101.97,3.69370096]
[1770021800194,4.5,102.0,101.96,3.69370096]
[1770021800601,31.74,102.04,101.99,3.69370096]
[1770021800813,4.5,102.04,102.0,3.69370096]
[1770021801710,4.5,102.04,101.99,3.69370096]
[1770021801912,4.5,102.04,102.0,3.69370096]
[1770021802422,4.5,102.04,102.0,3.69808703]
[1770021803919,4.5,102.04,101.99,3.69808703]
[1770021805425,4.5,102.03,101.98,3.69808703]
[1770021806421,4.5,102.02,101.98,3.69808703]
[1770021808519,4.5,102.02,101.99,3.69808703]
[1770021809222,67.2,102.03,102.0,3.69808703]
[1770021809523,4.5,102.03,102.0,3.69808703]
[1770021811406,4.5,102.03,102.01,3.69808703]
[1770021814024,4.5,102.03,102.0,3.69808703]
[1770021814423,4.5,102.03,102.01,3.69808703]
[1770021816218,4.5,102.03,102.0,3.69808703]
[1770021817036,4.5,102.03,101.99,10.08876429]
[1770021817037,4.5,102.02,101.98,3.69808703]
[1770021818126,3.69808703,102.02,101.97,3.69808703]
[1770021818319,4.5,102.01,101.97,3.69808703]
[1770021819022,4.5,102.0,101.96,3.69808703]
[1770021820226,4.5,102.0,101.95,3.69808703]
[1770021821129,4.5,102.0,101.96,3.69808703]
[1770021821326,4.5,101.99,101.95,3.69808703]
[1770021824049,4.5,101.98,101.93,0.1237681]
[1770021824225,4.5,101.98,101.94,3.69808703]
[1770021830120,4.5,101.98,101.93,3.82185513]
[1770021830742,4.5,101.98,101.94,3.69808703]
[1770021831741,4.5,101.98,101.93,3.82185513]
[1770021834043,4.5,101.98,101.94,3.69808703]
[1770021840661,62.7,102.0,101.95,3.69808703]
[1770021840832,4.5,102.02,101.98,3.69808703]
[1770021841033,4.5,102.03,101.99,3.69808703]
[1770021841335,4.5,102.03,102.0,3.69808703]
[1770021842455,4.5,102.03,101.99,3.69808703]
[1770021843137,4.5,102.03,102.0,3.69808703]
[1770021844928,3.69808703,102.06,102.0,3.69808703]
[1770021845127,27.26,102.07,102.02,3.69808703]
[1770021845128,4.5,102.05,102.02,3.69808703]
[1770021846254,4.5,102.06,102.03,3.69808703]
[1770021846751,31.74,102.09,102.05,3.69808703]
[1770021846956,0.1,102.1,102.07,3.69808703]
[1770021847157,0.1,102.1,102.09,3.69808703]
[1770021847347,0.1,102.13,102.12,3.69808703]
[1770021847663,0.1,102.13,102.07,0.14216157]
[1770021847664,0.1,102.13,102.11,3.69808703]
[1770021848039,0.8,102.12,102.11,3.69808703]
[1770021848240,0.1,102.13,102.11,3.69808703]
[1770021848435,4.6,102.13,102.1,3.69808703]
[1770021849262,0.1,102.13,102.12,3.69808703]
[1770021849557,0.1,102.14,102.12,3.69808703]
[1770021850559,4.6,102.14,102.12,3.69808703]
[1770021850740,4.6,102.14,102.11,3.69808703]
[1770021851863,4.6,102.14,102.1,3.69808703]
[1770021852660,4.6,102.14,102.09,3.69808703]
[1770021852960,4.5,102.13,102.09,3.69808703]